[Event "AUT-ch U14 Boys 2022"]
[Site "Sankt Veit an der Glan"]
[Date "2022.04.13"]
[Round "6.2"]
[White "Geroe, Leonhard"]
[Black "Pavlov, Alexander"]
[Result "1-0"]
[ECO "D58"]
[WhiteElo "1935"]
[BlackElo "1751"]
[Annotator "TA"]
[PlyCount "137"]
[EventDate "2022.04.11"]
[EventType "swiss"]
[EventCountry "AUT"]
[SourceTitle "playchess.com"]
[Source "ChessBase"]
[SourceQuality "1"]
[TimeControl "5400+30"]

{[%evp 17,136,0,3,-7,0,-14,0,-11,0,-18,0,-32,-27,-35,0,-10,0,-8,-7,-20,-16,-14,0,0,0,0,87,59,216,118,118,114,112,86,100,105,207,173,173,169,378,305,344,299,377,360,378,378,378,370,362,360,481,443,502,464,641,645,647,625,609,602,580,540,574,517,672,654,656,608,948,943,29967,29970,29973,29975,29974,29975,6813,5708,29977,29977,29977,29978,29978,29978,29978,29979,29982,29976,29973,29971,7224,5883,29977,29977,29987,29986,29990,29991,29991,29990,29990,29990,29990,29991,29992,29993,29993,29994,29994,29992,29995,29995,29996,29997,29997,29998,29998,29999,29999]} 1. d4 {[%emt 0:00:08]} d5 {[%emt 0:00:12]} 2. c4 {[%emt 0:00:06]} e6 {[%emt 0:00:12]} 3. Nf3 {[%emt 0:00:34]} Be7 {[%emt 0:01:12]} 4. Nc3 {[%emt 0:04:28]} Nf6 5. Bg5 h6 {[%emt 0:03:57]} 6. Bh4 {[%emt 0:01:14]} b6 {[%emt 0:00:44]} 7. e3 {[%emt 0:02:18]} O-O {[%emt 0:00:48]} 8. Be2 {is cutting edge theory.} Bb7 {[%emt 0:02:33]} 9. O-O {[%emt 0:06:10]} Nbd7 {[%emt 0:03:14]} 10. cxd5 {[%emt 0:05:18] D58: Queen's Gambit Declined: Tartakower Defence.} Nxd5 {[%emt 0:02:32]} 11. Bg3 {[%emt 0:06:29]} N7f6 {[%emt 0:02:59]} 12. Rc1 {[%emt 0:05:17] The position is equal.} c5 {[%emt 0:01:58]} 13. Bd3 {[%emt 0:10:11] [#]} cxd4 $146 {[%emt 0:11:23]} ({Predecessor:} 13... Rc8 14. Qe2 cxd4 15. exd4 Nb4 16. Bb5 a6 17. Ba4 Nbd5 18. Ne5 Nxc3 19. bxc3 Qd5 20. Nf3 {0-1 (36) Lazarev,V (2445)-Vaganian,R (2590) Neu Isenburg 1992}) 14. Nxd4 {[%emt 0:08:35]} Nxc3 {[%emt 0:05:08]} 15. Rxc3 {[%emt 0:05:18]} Nd5 {[%emt 0:00:31] Against Rc7} 16. Rc1 {[%emt 0:01:05]} Bd6 {[%emt 0:04:36]} 17. Qg4 {[%emt 0:10:31][%cal Od4e6] [#] Strongly threatening Nxe6!} Nf6 {[%emt 0:03:07]} 18. Qh3 {[%emt 0:06:25]} Bxg3 {[%emt 0:03:13]} 19. Qxg3 {[%emt 0:00:32]} Rb8 {[%emt 0:02:58]} 20. Rc7 {[%emt 0:09:54][%cal Od4e6] Nxe6! is the strong threat.} Qd5 {[%emt 0:11:28]} 21. Bc4 {[%emt 0:03:15]} Qe4 {[%emt 0:02:30]} (21... Qg5 $11) 22. Be2 {[%emt 0:05:52] aiming for Bf3.} Nd5 $2 {[%emt 0:14:47] [#]} (22... Qh7 $14) 23. Bf3 $40 {[%emt 0:01:32][%mdl 128] White wants a kill.} (23. Rd7 $1 $18) 23... Qg6 $16 {[%emt 0:00:09]} 24. Qxg6 {[%emt 0:00:52]} fxg6 {[%emt 0:00:03]} 25. Bxd5 {[%emt 0:00:51]} exd5 {[%emt 0:00:03]} 26. Rfc1 {[%emt 0:01:05] &Bianco is more active.} Rfc8 {[%emt 0:00:50]} (26... Rbc8 $16) 27. Ne6 {[%emt 0:01:07]} Rxc7 {[%emt 0:01:13]} 28. Rxc7 $18 {[%emt 0:00:19][%mdl 4096] Endgame KRB-KRN} Rc8 $2 {[%emt 0:01:27]} (28... d4 {is a better defense.} 29. Rxg7+ Kh8) 29. Rxg7+ {[%emt 0:00:23]} Kh8 {[%emt 0:00:05][%cal Rc8c1]} 30. h3 {[%emt 0:00:28]} Rc6 {[%emt 0:00:26]} 31. Rxb7 {[%emt 0:00:18]} Rxe6 {[%emt 0:00:02]} 32. Rxa7 {[%emt 0:00:13] KR-KR} Rc6 {[%emt 0:00:02]} 33. g3 {[%emt 0:00:44]} Rc2 {[%emt 0:00:16]} 34. b3 {[%emt 0:00:33]} Rc6 {[%emt 0:00:30]} 35. Kg2 {[%emt 0:01:00]} h5 {[%emt 0:00:05]} 36. Rd7 {[%emt 0:00:37]} b5 {[%emt 0:01:19]} 37. Rxd5 {[%emt 0:00:20]} Rb6 {[%emt 0:00:07]} 38. f4 {[%emt 0:01:24]} Kg7 {[%emt 0:00:10]} 39. Kf3 {[%emt 0:00:14]} b4 {[%emt 0:00:31]} 40. Ke4 {[%emt 0:01:12]} Kf6 {[%emt 0:00:38]} 41. Kd4 {[%emt 0:00:19]} Ke6 {[%emt 0:00:12]} 42. Rg5 {[%emt 0:00:17]} Kf6 {[%emt 0:00:05]} 43. Kc4 {[%emt 0:00:10]} Re6 {[%emt 0:00:10]} 44. Kxb4 {[%emt 0:01:00]} Rxe3 {[%emt 0:00:07]} 45. h4 {[%emt 0:00:13]} Re8 {[%emt 0:00:57]} 46. a4 {[%emt 0:00:08][%cal Ba2a4,Ba4a5][%mdl 32]} Rb8+ {[%emt 0:00:13]} 47. Ka3 {[%emt 0:00:10]} Rb6 {[%emt 0:00:10]} 48. a5 {[%emt 0:00:09]} Ra6 {[%emt 0:00:04]} 49. Ka4 {[%emt 0:00:05]} Ke7 {[%emt 0:00:05]} 50. Kb5 {[%emt 0:00:17]} Ra8 {[%emt 0:00:08]} 51. Rxg6 {[%emt 0:00:12]} Kd7 {[%emt 0:00:08]} 52. b4 {[%emt 0:00:15]} Rf8 {[%emt 0:00:09]} 53. Rg5 {[%emt 0:00:10]} Rb8+ {[%emt 0:00:07]} 54. Ka4 {[%emt 0:00:06]} Kc7 {[%emt 0:00:11]} 55. Rxh5 {[%emt 0:00:12] b5 would kill now.} Rf8 {[%emt 0:00:06]} 56. b5 {[%emt 0:00:12] White mates.} Kb8 {[%emt 0:00:12]} 57. a6 {[%emt 0:00:07]} Ka7 {[%emt 0:00:21]} 58. Ka5 {[%emt 0:00:08]} Re8 {[%emt 0:00:54]} 59. Rh7+ {[%emt 0:00:07]} Ka8 {[%emt 0:00:05]} 60. Rg7 {[%emt 0:00:14]} Rd8 {[%emt 0:00:18]} 61. h5 {[%emt 0:01:22]} Rd5 {[%emt 0:00:15]} 62. h6 {[%emt 0:00:33]} Rh5 {[%emt 0:00:10]} 63. h7 {[%emt 0:00:11]} Kb8 {[%emt 0:00:16]} 64. Rg8+ {[%emt 0:00:18]} Ka7 {[%emt 0:00:06]} 65. Rg5 {[%emt 0:00:10]} Rh6 {[%emt 0:00:40]} 66. b6+ {[%emt 0:00:56]} Rxb6 {[%emt 0:00:16]} 67. Rg7+ {[%emt 0:00:05]} Ka8 {[%emt 0:00:19]} 68. Kxb6 {[%emt 0:00:12][%cal Rh7h8]} Kb8 {[%emt 0:00:04]} 69. h8=R# {[%emt 0:00:08] Weighted Error Value: White=0.16 (very precise) /Black=0.46} 1-0

[Event "AUT-ch U14 Boys 2022"]
[Site "Sankt Veit an der Glan"]
[Date "2022.04.13"]
[Round "6.3"]
[White "Feiertag, Jonas"]
[Black "Wimmer, Michael"]
[Result "0-1"]
[ECO "C25"]
[WhiteElo "1289"]
[BlackElo "1753"]
[Annotator "NA RC"]
[PlyCount "58"]
[EventDate "2022.04.11"]
[EventType "swiss"]
[EventCountry "AUT"]
[SourceTitle "playchess.com"]
[Source "ChessBase"]
[SourceQuality "1"]
[TimeControl "5400+30"]

1. e4 {[%emt 0:00:14]} e5 {[%emt 0:00:11]} 2. Nc3 {[%emt 0:00:09]} Nc6 {[%emt 0:00:58]} 3. g3 {[%emt 0:00:12]} Bc5 {[%emt 0:01:57]} 4. Bg2 {[%emt 0:00:45]} d6 {[%emt 0:01:38]} 5. h3 {[%emt 0:00:10]} Be6 {[%emt 0:02:40]} 6. Nge2 {[%emt 0:01:31]} Nge7 {[%emt 0:04:19]} 7. O-O {[%emt 0:01:33]} O-O {[%emt 0:04:37]} 8. Kh2 {[%emt 0:02:00]} d5 {[%emt 0:03:39]} 9. exd5 {[%emt 0:10:13]} Nxd5 {[%emt 0:00:35]} 10. Ne4 {[%emt 0:00:08]} Be7 {[%emt 0:01:57]} 11. d3 {[%emt 0:04:17]} f5 {[%emt 0:01:52]} 12. N4c3 {[%emt 0:00:14]} f4 {[%emt 0:05:02]} 13. Nxd5 {[%emt 0:05:11]} Bxd5 {[%emt 0:01:09]} 14. gxf4 {[%emt 0:00:31]} Bxg2 {[%emt 0:04:55]} 15. Kxg2 {[%emt 0:02:56]} Qd5+ {[%emt 0:00:29]} 16. f3 {[%emt 0:05:09]} exf4 {[%emt 0:00:37]} 17. Bxf4 {[%emt 0:01:21]} Rxf4 {[%emt 0:00:27]} 18. Nxf4 {[%emt 0:00:20]} Qg5+ {[%emt 0:00:13]} 19. Kh1 {[%emt 0:01:18]} Qxf4 {[%emt 0:00:24]} 20. Qe2 {[%emt 0:01:21]} Bd6 {[%emt 0:01:25]} 21. Rg1 {[%emt 0:05:51]} Nd4 {[%emt 0:02:00]} 22. Qg2 {[%emt 0:02:20]} Nf5 {[%emt 0:01:00]} 23. Qf2 {[%emt 0:02:31]} Ng3+ {[%emt 0:02:29]} 24. Kg2 {[%emt 0:00:18]} Qg5 {[%emt 0:00:56]} 25. h4 {[%emt 0:07:16]} Qxh4 {[%emt 0:02:23]} 26. Qe3 {[%emt 0:00:17]} Rf8 {[%emt 0:02:36]} 27. Qe6+ {[%emt 0:00:54]} Kh8 {[%emt 0:01:17]} 28. Qg4 {[%emt 0:00:12]} Qh6 {[%emt 0:01:12]} 29. Rad1 {[%emt 0:01:32]} Nf5 {[%emt 0:00:47]} 0-1

[Event "AUT-ch U14 Boys 2022"]
[Site "Sankt Veit an der Glan"]
[Date "2022.04.13"]
[Round "6.4"]
[White "Standhartinger, Joachim"]
[Black "Leitgeb, Julian"]
[Result "1/2-1/2"]
[ECO "B45"]
[WhiteElo "1729"]
[BlackElo "2004"]
[Annotator "ChessBase"]
[PlyCount "47"]
[EventDate "2022.04.11"]
[EventType "swiss"]
[EventCountry "AUT"]
[SourceTitle "playchess.com"]
[Source "ChessBase"]
[SourceQuality "1"]
[TimeControl "5400+30"]

1. e4 {[%emt 0:00:08]} c5 {[%emt 0:00:02]} 2. Nf3 {[%emt 0:00:06]} e6 {[%emt 0:00:04]} 3. d4 {[%emt 0:00:04]} cxd4 {[%emt 0:00:03]} 4. Nxd4 {[%emt 0:00:28]} Nc6 {[%emt 0:00:10]} 5. Nc3 {[%emt 0:00:11]} Nf6 {[%emt 0:00:14]} 6. a3 {[%emt 0:00:15]} d6 {[%emt 0:00:11]} 7. Be3 {[%emt 0:01:16]} Be7 {[%emt 0:00:07]} 8. f4 {[%emt 0:02:30]} a6 {[%emt 0:01:07]} 9. Be2 {[%emt 0:02:13]} Bd7 {[%emt 0:01:09]} 10. O-O {[%emt 0:00:22]} O-O {[%emt 0:00:13]} 11. Qe1 {[%emt 0:04:27]} Qc7 {[%emt 0:01:30]} 12. Kh1 {[%emt 0:00:50]} Nxd4 {[%emt 0:09:56]} 13. Bxd4 {[%emt 0:00:27]} b5 {[%emt 0:00:32]} 14. Qg3 {[%emt 0:04:20]} Bc6 {[%emt 0:02:50]} 15. Bd3 {[%emt 0:01:07]} Qb7 {[%emt 0:05:13]} 16. Rae1 {[%emt 0:00:41]} b4 {[%emt 0:14:46]} 17. axb4 {[%emt 0:02:44]} Qxb4 {[%emt 0:00:50]} 18. Ne2 {[%emt 0:00:20]} Qb7 {[%emt 0:07:54]} 19. Ng1 {[%emt 0:07:39]} Rac8 {[%emt 0:05:23]} 20. Nf3 {[%emt 0:14:51]} Nh5 {[%emt 0:03:35]} 21. Qg4 {[%emt 0:09:49]} Nf6 {[%emt 0:00:06]} 22. Qg3 {[%emt 0:02:32]} Nh5 {[%emt 0:12:20]} 23. Qg4 {[%emt 0:05:52]} Nf6 {[%emt 0:00:09]} 24. Qg3 1/2-1/2

[Event "AUT-ch U14 Boys 2022"]
[Site "Sankt Veit an der Glan"]
[Date "2022.04.13"]
[Round "6.5"]
[White "Haselsberger, Armin"]
[Black "Radnaev, Nomin"]
[Result "1-0"]
[ECO "D02"]
[WhiteElo "1541"]
[BlackElo "1766"]
[Annotator "NA RC"]
[PlyCount "57"]
[EventDate "2022.04.11"]
[EventType "swiss"]
[EventCountry "AUT"]
[SourceTitle "playchess.com"]
[Source "ChessBase"]
[SourceQuality "1"]
[TimeControl "5400+30"]

1. d4 {[%emt 0:00:36]} Nf6 {[%emt 0:00:04]} 2. Bf4 {[%emt 0:00:45]} d5 {[%emt 0:00:28]} 3. Nf3 {[%emt 0:00:39]} c5 {[%emt 0:00:17]} 4. e3 {[%emt 0:01:01]} Nc6 {[%emt 0:00:20]} 5. Nbd2 {[%emt 0:00:54]} e6 {[%emt 0:02:42]} 6. c3 {[%emt 0:01:20]} Bd6 {[%emt 0:02:04]} 7. Bg3 {[%emt 0:04:04]} O-O {[%emt 0:00:20]} 8. Bd3 {[%emt 0:03:11]} b6 {[%emt 0:00:54]} 9. Ne5 {[%emt 0:01:46]} Bb7 {[%emt 0:00:56]} 10. O-O {[%emt 0:01:47]} Ne7 {[%emt 0:04:56]} 11. h3 {[%emt 0:09:04]} Qc7 {[%emt 0:09:34]} 12. Re1 {[%emt 0:04:54]} Ne4 {[%emt 0:01:51]} 13. Bh2 {[%emt 0:06:23]} f6 {[%emt 0:01:16]} 14. Nef3 {[%emt 0:01:07]} Bxh2+ {[%emt 0:00:39]} 15. Nxh2 {[%emt 0:00:03]} Nxf2 {[%emt 0:00:07]} 16. Kxf2 {[%emt 0:08:03]} Qxh2 {[%emt 0:00:07]} 17. Qg4 {[%emt 0:03:18]} Qd6 {[%emt 0:04:09]} 18. Kg1 {[%emt 0:02:55]} Rae8 {[%emt 0:03:54]} 19. Nf3 {[%emt 0:01:51]} e5 {[%emt 0:08:55]} 20. dxe5 {[%emt 0:10:08]} fxe5 {[%emt 0:00:09]} 21. e4 {[%emt 0:02:10]} dxe4 {[%emt 0:29:10]} 22. Bxe4 {[%emt 0:02:34]} Rf4 {[%emt 0:00:50]} 23. Bxh7+ {[%emt 0:01:53]} Kxh7 {[%emt 0:07:47]} 24. Qh5+ {[%emt 0:00:31]} Qh6 {[%emt 0:00:02]} 25. Ng5+ {[%emt 0:00:26]} Kh8 {[%emt 0:00:48]} 26. Qxe8+ {[%emt 0:00:07]} Ng8 {[%emt 0:00:09]} 27. Nf7+ {[%emt 0:00:31]} Rxf7 {[%emt 0:00:06]} 28. Qxf7 {[%emt 0:00:09]} Qg5 {[%emt 0:00:17]} 29. Qxb7 {[%emt 0:00:19]} 1-0

[Event "AUT-ch U14 Boys 2022"]
[Site "Sankt Veit an der Glan"]
[Date "2022.04.13"]
[Round "6.6"]
[White "Schwarz, Felix"]
[Black "Gruenwald, Simon"]
[Result "0-1"]
[ECO "A45"]
[WhiteElo "1831"]
[BlackElo "1584"]
[Annotator "NA RC"]
[PlyCount "42"]
[EventDate "2022.04.11"]
[EventType "swiss"]
[EventCountry "AUT"]
[SourceTitle "playchess.com"]
[Source "ChessBase"]
[SourceQuality "1"]
[TimeControl "5400+30"]

{[%evp 9,41,1,32767,32767,32767,32767,32767,32767,32767,32767,32767,32767,-38,32767,32767,-37,0,32767,0,0,23,-37,-46,-29,0,-196,-210,-211,35,28,47,-431,-435,-422]} 1. d4 {[%emt 0:00:04]} Nf6 {[%emt 0:00:06]} 2. Bf4 {[%emt 0:00:09]} g6 {[%emt 0:00:05]} 3. e3 {[%emt 0:00:28]} Bg7 {[%emt 0:00:08]} 4. Nf3 {[%emt 0:00:10]} d6 {[%emt 0:00:26]} 5. Nbd2 {[%emt 0:00:26]} c5 {[%emt 0:02:22]} 6. c3 {[%emt 0:00:29]} O-O {[%emt 0:00:50]} 7. Bd3 {[%emt 0:00:33]} Nc6 {[%emt 0:00:53]} 8. Qe2 {[%emt 0:01:59]} cxd4 {[%emt 0:00:45]} 9. exd4 {[%emt 0:01:57]} e5 {[%emt 0:01:52]} 10. dxe5 {[%emt 0:02:07]} dxe5 {[%emt 0:01:42]} 11. Bg3 {[%emt 0:01:15]} e4 {[%emt 0:01:01]} 12. Bxe4 {[%emt 0:06:41]} Nxe4 {[%emt 0:01:24]} (12... Re8 $15 13. Bh4 Bf5) 13. Nxe4 {[%emt 0:00:10]} f5 {[%emt 0:00:34]} 14. Qc4+ {[%emt 0:01:54]} Kh8 {[%emt 0:05:12]} 15. Nd6 {[%emt 0:05:13]} (15. Neg5 $11 {deserves consideration.} Qe8+ 16. Kf1) 15... Qe7+ {[%emt 0:03:18]} 16. Kf1 {[%emt 0:00:53]} Be6 {[%emt 0:05:25]} (16... f4 $5 17. Bxf4 Be6 $15) 17. Qc5 $2 {[%emt 0:06:29]} (17. Qf4 $1 $11 {and White stays safe.}) 17... f4 {[%emt 0:15:27]} 18. Bh4 $19 {[%emt 0:01:09] [#]} Bf6 $2 {[%emt 0:02:33]} (18... Qd7 $1 $19 19. Kg1 h6) 19. Bxf6+ {[%emt 0:03:45]} Rxf6 {[%emt 0:00:57]} 20. Ne5 $2 {[%emt 0:02:26]} (20. Ne4 $1 $11 {and White stays safe.} Qxc5 21. Nxc5) 20... Nxe5 {[%emt 0:03:00]} 21. Qxe5 {[%emt 0:00:07]} Rd8 {[%emt 0:01:21]} 0-1

[Event "AUT-ch U14 Boys 2022"]
[Site "Sankt Veit an der Glan"]
[Date "2022.04.13"]
[Round "6.7"]
[White "Gan-Erdene, Ganbat"]
[Black "Maier, Tobias"]
[Result "1-0"]
[ECO "C29"]
[WhiteElo "1526"]
[BlackElo "1388"]
[Annotator "NA RC"]
[PlyCount "83"]
[EventDate "2022.04.11"]
[EventType "swiss"]
[EventCountry "AUT"]
[SourceTitle "playchess.com"]
[Source "ChessBase"]
[SourceQuality "1"]
[TimeControl "5400+30"]

1. e4 {[%emt 0:00:03]} e5 {[%emt 0:00:05]} 2. Nc3 {[%emt 0:00:03]} Nf6 {[%emt 0:00:11]} 3. f4 {[%emt 0:00:06]} d5 {[%emt 0:00:11]} 4. fxe5 {[%emt 0:00:09]} Nxe4 {[%emt 0:00:15]} 5. Qf3 {[%emt 0:00:17]} Nxc3 {[%emt 0:00:43]} 6. bxc3 {[%emt 0:00:06]} c5 {[%emt 0:00:39]} 7. Qg3 {[%emt 0:01:04]} Nc6 {[%emt 0:02:27]} 8. Bb5 {[%emt 0:00:07]} g6 {[%emt 0:01:30]} 9. Ne2 {[%emt 0:03:15]} Bg7 {[%emt 0:01:01]} 10. O-O {[%emt 0:00:55]} O-O {[%emt 0:00:42]} 11. Bxc6 {[%emt 0:00:11]} bxc6 {[%emt 0:00:23]} 12. d4 {[%emt 0:03:24]} Ba6 {[%emt 0:00:20]} 13. Re1 {[%emt 0:03:56]} Qb6 {[%emt 0:02:07]} 14. Ba3 {[%emt 0:01:29]} Bxe2 {[%emt 0:09:56]} 15. Rxe2 {[%emt 0:10:56]} Qa6 {[%emt 0:12:25]} 16. c4 {[%emt 0:05:23]} Qxc4 {[%emt 0:05:35]} 17. Qd3 {[%emt 0:02:00]} Qxd3 {[%emt 0:00:25]} 18. cxd3 {[%emt 0:00:08]} Rfe8 {[%emt 0:00:37]} 19. Bxc5 {[%emt 0:00:56]} a6 {[%emt 0:00:45]} 20. Rb1 {[%emt 0:01:23]} Rab8 {[%emt 0:00:30]} 21. Reb2 {[%emt 0:01:28]} Rb5 {[%emt 0:00:27]} 22. a4 {[%emt 0:00:50]} Rxb2 {[%emt 0:16:27]} 23. Rxb2 {[%emt 0:00:08]} a5 {[%emt 0:00:50]} 24. Rb6 {[%emt 0:00:55]} Rc8 {[%emt 0:00:13]} 25. Ra6 {[%emt 0:01:11]} Bf8 {[%emt 0:00:21]} 26. Rxa5 {[%emt 0:00:28]} Bxc5 {[%emt 0:00:17]} 27. Rxc5 {[%emt 0:00:17]} Kf8 {[%emt 0:00:07]} 28. Kf2 {[%emt 0:01:25]} Ke7 {[%emt 0:00:13]} 29. Rc2 {[%emt 0:04:57]} Kd7 {[%emt 0:01:15]} 30. Rb2 {[%emt 0:00:16]} Kc7 {[%emt 0:00:16]} 31. Kf3 {[%emt 0:01:09]} Ra8 {[%emt 0:01:09]} 32. Rb4 {[%emt 0:00:37]} f6 {[%emt 0:05:12]} 33. exf6 {[%emt 0:07:43]} Rf8 {[%emt 0:00:12]} 34. a5 {[%emt 0:02:00]} Rxf6+ {[%emt 0:00:10]} 35. Ke3 {[%emt 0:00:08]} g5 {[%emt 0:07:05]} 36. a6 {[%emt 0:01:25]} c5 {[%emt 0:01:41]} 37. Rb7+ {[%emt 0:03:31]} Kc8 {[%emt 0:00:15]} 38. dxc5 {[%emt 0:00:41]} Rxa6 {[%emt 0:00:42]} 39. Rxh7 {[%emt 0:00:24]} Ra4 {[%emt 0:01:10]} 40. Rh5 {[%emt 0:00:29]} d4+ {[%emt 0:00:30]} 41. Ke4 {[%emt 0:00:11]} g4 {[%emt 0:00:27]} 42. Rg5 {[%emt 0:00:08]} 1-0

[Event "AUT-ch U14 Boys 2022"]
[Site "Sankt Veit an der Glan"]
[Date "2022.04.13"]
[Round "6.9"]
[White "Guba, Viktor"]
[Black "Stadlbauer, Maximilian"]
[Result "1-0"]
[ECO "C55"]
[WhiteElo "1598"]
[BlackElo "1450"]
[Annotator "NA RC"]
[PlyCount "105"]
[EventDate "2022.04.11"]
[EventType "swiss"]
[EventCountry "AUT"]
[SourceTitle "playchess.com"]
[Source "ChessBase"]
[SourceQuality "1"]
[TimeControl "5400+30"]

1. e4 {[%emt 0:00:08]} e5 {[%emt 0:00:05]} 2. Nf3 {[%emt 0:00:19]} Nc6 {[%emt 0:00:14]} 3. d4 {[%emt 0:00:35]} exd4 {[%emt 0:00:22]} 4. Bc4 {[%emt 0:00:22]} Nf6 {[%emt 0:01:00]} 5. e5 {[%emt 0:00:35]} d5 {[%emt 0:01:58]} 6. Bb5 {[%emt 0:01:18]} Ne4 {[%emt 0:01:50]} 7. Nxd4 {[%emt 0:00:59]} Bd7 {[%emt 0:01:04]} 8. Bxc6 {[%emt 0:01:04]} bxc6 {[%emt 0:01:53]} 9. O-O {[%emt 0:01:44]} Bc5 {[%emt 0:01:58]} 10. f3 {[%emt 0:02:28]} Ng5 {[%emt 0:01:58]} 11. f4 {[%emt 0:00:06]} Ne6 {[%emt 0:00:16]} 12. Be3 {[%emt 0:06:26]} O-O {[%emt 0:07:44]} 13. c3 {[%emt 0:13:13]} Nxd4 {[%emt 0:00:30]} 14. cxd4 {[%emt 0:00:30]} Bb6 {[%emt 0:00:30]} 15. f5 {[%emt 0:07:02]} Re8 {[%emt 0:09:18]} 16. Rf3 {[%emt 0:13:18]} Rb8 {[%emt 0:17:26]} 17. b4 {[%emt 0:13:12]} a5 {[%emt 0:05:50]} 18. Rf4 {[%emt 0:10:43]} Rxe5 {[%emt 0:03:36]} 19. bxa5 {[%emt 0:02:55]} Rxe3 {[%emt 0:01:06]} 20. axb6 {[%emt 0:00:05]} cxb6 {[%emt 0:00:10]} 21. Nd2 {[%emt 0:02:34]} Qg5 {[%emt 0:11:18]} 22. Qf1 {[%emt 0:01:58]} Rbe8 {[%emt 0:01:01]} 23. Rf2 {[%emt 0:01:47]} h6 {[%emt 0:01:39]} 24. Nf3 {[%emt 0:02:44]} Qe7 {[%emt 0:02:20]} 25. Rb1 {[%emt 0:04:42]} Rb8 {[%emt 0:05:05]} 26. Rfb2 {[%emt 0:03:38]} Ra3 {[%emt 0:04:48]} 27. Ne5 {[%emt 0:02:27]} f6 {[%emt 0:02:10]} 28. Nxd7 {[%emt 0:00:51]} Qxd7 {[%emt 0:00:07]} 29. Rxb6 {[%emt 0:00:04]} Rxb6 {[%emt 0:00:13]} 30. Rxb6 {[%emt 0:00:06]} Rxa2 {[%emt 0:00:12]} 31. Rb8+ {[%emt 0:00:04]} Kh7 {[%emt 0:00:22]} 32. Qf4 {[%emt 0:00:56]} Ra1+ {[%emt 0:04:01]} 33. Kf2 {[%emt 0:00:05]} Qe7 {[%emt 0:00:12]} 34. Kg3 {[%emt 0:01:56]} Qe1+ {[%emt 0:00:47]} 35. Kh3 {[%emt 0:00:01]} Ra3+ {[%emt 0:00:29]} 36. g3 {[%emt 0:00:04]} Qe2 {[%emt 0:01:44]} 37. Qg4 {[%emt 0:06:14]} Qxg4+ {[%emt 0:00:11]} 38. Kxg4 {[%emt 0:00:05]} Ra4 {[%emt 0:00:09]} 39. Kh5 {[%emt 0:00:32]} Rxd4 {[%emt 0:00:35]} 40. h4 {[%emt 0:00:12]} Ra4 {[%emt 0:01:03]} 41. Rc8 {[%emt 0:00:08]} Ra6 {[%emt 0:00:13]} 42. g4 {[%emt 0:00:20]} d4 {[%emt 0:01:18]} 43. Rc7 {[%emt 0:00:34]} d3 {[%emt 0:00:18]} 44. Rd7 {[%emt 0:00:29]} Ra3 {[%emt 0:00:21]} 45. g5 {[%emt 0:00:13]} hxg5 {[%emt 0:01:13]} 46. hxg5 {[%emt 0:00:06]} fxg5 {[%emt 0:01:21]} 47. f6 {[%emt 0:00:05]} Kg8 {[%emt 0:02:35]} 48. Kg6 {[%emt 0:00:17]} Ra8 {[%emt 0:00:24]} 49. Rxg7+ {[%emt 0:00:14]} Kf8 {[%emt 0:05:38]} 50. Rh7 {[%emt 0:00:05]} Kg8 {[%emt 0:00:50]} 51. f7+ {[%emt 0:00:07]} Kf8 {[%emt 0:00:06]} 52. Rh8+ {[%emt 0:00:03]} Ke7 {[%emt 0:00:06]} 53. Rxa8 {[%emt 0:00:04]} 1-0

[Event "AUT-ch U14 Boys 2022"]
[Site "Sankt Veit an der Glan"]
[Date "2022.04.13"]
[Round "6.10"]
[White "Winkelbauer, Christian"]
[Black "Roessler, Felix"]
[Result "1-0"]
[ECO "A15"]
[WhiteElo "1577"]
[BlackElo "1512"]
[Annotator "NA RC"]
[PlyCount "65"]
[EventDate "2022.04.11"]
[EventType "swiss"]
[EventCountry "AUT"]
[SourceTitle "playchess.com"]
[Source "ChessBase"]
[SourceQuality "1"]
[TimeControl "5400+30"]

1. c4 {[%emt 0:00:02]} Nf6 {[%emt 0:00:03]} 2. g3 {[%emt 0:00:13]} e6 {[%emt 0:00:05]} 3. Bg2 {[%emt 0:00:16]} d5 {[%emt 0:00:08]} 4. b3 {[%emt 0:00:46]} c5 {[%emt 0:00:35]} 5. Bb2 {[%emt 0:00:44]} Be7 {[%emt 0:02:02]} 6. d3 {[%emt 0:01:15]} Nc6 {[%emt 0:00:29]} 7. e3 {[%emt 0:02:14]} O-O {[%emt 0:01:01]} 8. Ne2 {[%emt 0:01:27]} Rb8 {[%emt 0:04:05]} 9. O-O {[%emt 0:04:37]} Qd7 {[%emt 0:00:52]} 10. Nd2 {[%emt 0:01:56]} b6 {[%emt 0:01:49]} 11. d4 {[%emt 0:02:53]} Bb7 {[%emt 0:02:52]} 12. cxd5 {[%emt 0:11:36]} exd5 {[%emt 0:00:11]} 13. Rc1 {[%emt 0:02:54]} Qd6 {[%emt 0:01:21]} 14. h3 {[%emt 0:03:47]} Ba6 {[%emt 0:03:18]} 15. Re1 {[%emt 0:01:15]} Nb4 {[%emt 0:00:46]} 16. dxc5 {[%emt 0:02:54]} bxc5 {[%emt 0:00:19]} 17. Bxf6 {[%emt 0:00:33]} Bxf6 {[%emt 0:00:10]} 18. Ne4 {[%emt 0:03:03]} Qb6 {[%emt 0:05:29]} 19. Nxf6+ {[%emt 0:00:25]} Qxf6 {[%emt 0:02:58]} 20. Nf4 {[%emt 0:01:07]} Rfd8 {[%emt 0:07:40]} 21. Rxc5 {[%emt 0:03:50]} d4 {[%emt 0:06:09]} 22. exd4 {[%emt 0:11:53]} Rxd4 {[%emt 0:00:21]} 23. Qa1 {[%emt 0:02:15]} Qd6 {[%emt 0:13:20]} 24. Rce5 {[%emt 0:03:48]} h6 {[%emt 0:03:42]} 25. Re8+ {[%emt 0:04:21]} Rxe8 {[%emt 0:01:10]} 26. Rxe8+ {[%emt 0:00:02]} Kh7 {[%emt 0:00:19]} 27. Qc3 {[%emt 0:02:44]} Nxa2 {[%emt 0:02:43]} 28. Qc2+ {[%emt 0:00:21]} g6 {[%emt 0:01:44]} 29. Qxa2 {[%emt 0:02:01]} Rd2 {[%emt 0:03:25]} 30. Qa5 {[%emt 0:00:03]} Qd4 {[%emt 0:00:50]} 31. Qc7 {[%emt 0:03:49]} Qxf2+ {[%emt 0:01:52]} 32. Kh2 {[%emt 0:00:32]} Kg7 {[%emt 0:01:14]} 33. Qe5+ {[%emt 0:00:23]} 1-0